fUST/lending_fUST_20240808
["ID","MTS","AMOUNT","RATE_DAILY","PERIOD"]
[334450226,1723105850119,-500.0,0.00027671,7]
[334450227,1723105850129,-500.0,0.00027671,7]
[334450228,1723105850142,-581.9,0.00027671,7]
[334450229,1723105850152,-186.882904,0.00027671,7]
[334450230,1723105850161,-497.34186838,0.00027671,7]
[334450231,1723105850171,-500.0,0.00027671,7]
[334450232,1723105850181,-497.50089015,0.00027671,7]
[334450233,1723105850191,-500.0,0.00027671,7]
[334450234,1723105850200,-537.31,0.00027671,7]
[334450235,1723105850210,-500.0,0.00027671,7]
[334450236,1723105850221,-500.0,0.00027671,7]
[334450237,1723105850231,-500.0,0.00027671,7]
[334450238,1723105850242,-602.75,0.00027671,7]
[334450239,1723105850251,-500.0,0.00027671,7]
[334450240,1723105850261,-500.0,0.00027671,7]
[334450241,1723105850271,-500.0,0.00027671,7]
[334450242,1723105850280,-503.20865657,0.00027671,7]
[334450243,1723105850291,-500.0,0.00027671,7]
[334450244,1723105850302,-500.0,0.00027671,7]
[334450245,1723105850313,-500.0,0.00027671,7]
[334450246,1723105850324,-500.0,0.00027671,7]
[334450247,1723105850333,-500.0,0.00027671,7]
[334450248,1723105850343,-1306.35,0.00027671,7]
[334450249,1723105850353,-500.0,0.00027671,7]
[334450250,1723105850363,-500.0,0.00027671,7]
[334450251,1723105850373,-500.0,0.00027671,7]
[334450252,1723105850383,-500.0,0.00027671,7]
[334450253,1723105850394,-500.0,0.00027671,7]
[334450254,1723105850404,-500.0,0.00027671,7]
[334450255,1723105850414,-500.0,0.00027671,7]
[334450256,1723105850423,-500.0,0.00027671,7]
[334450257,1723105850433,-500.0,0.00027671,7]
[334450258,1723105850443,-500.0,0.00027671,7]
[334450259,1723105850452,-500.0,0.00027671,7]
[334450260,1723105850463,-386.357686,0.00027671,2]
[334450261,1723105850473,-386.357686,0.00027671,2]
[334450262,1723105850482,-500.0,0.00027671,7]
[334450263,1723105850492,-502.59138878,0.00027671,7]
[334450264,1723105850501,-500.0,0.00027671,7]
[334450265,1723105850510,-386.357686,0.00027671,2]
[334450266,1723105850519,-500.0,0.00027671,7]
[334450267,1723105850528,-386.357686,0.00027671,2]
[334450268,1723105850539,-500.0,0.00027671,7]
[334450269,1723105850549,-500.0,0.00027671,7]
[334450270,1723105850558,-500.0,0.00027671,7]
[334450271,1723105850568,-500.0,0.00027671,7]
[334450272,1723105850579,-500.0,0.00027671,7]
[334450273,1723105850589,-439.461967,0.00027671,7]
[334450274,1723105850599,-500.0,0.00027671,7]
[334450275,1723105850610,-439.28384441,0.00027671,7]
[334450276,1723105850620,-500.0,0.00027671,7]
[334450277,1723105850630,-500.0,0.00027671,7]
[334450278,1723105850641,-552.87660334,0.00027671,7]
[334450279,1723105850650,-500.0,0.00027671,7]
[334450280,1723105850660,-500.0,0.00027671,7]
[334450281,1723105850669,-500.0,0.00027671,7]
[334450282,1723105850679,-999.59,0.00027671,7]
[334450283,1723105850689,-500.0,0.00027671,7]
[334450284,1723105850699,-1795.94,0.00027671,7]
[334450285,1723105850708,-608.74,0.00027671,7]
[334450286,1723105850718,-500.0,0.00027671,7]
[334450287,1723105850727,-500.0,0.00027671,7]
[334450288,1723105850737,-500.0,0.00027671,7]
[334450289,1723105850748,-517.24684752,0.00027671,7]
[334450290,1723105850757,-500.0,0.00027671,7]
[334450291,1723105850766,-500.0,0.00027671,7]
[334450292,1723105850776,-509.79120998,0.00027671,2]
[334450293,1723105850786,-521.34,0.00027671,7]
[334450294,1723105850797,-500.0,0.00027671,7]
[334450295,1723105850806,-500.0,0.00027671,7]
[334450296,1723105850816,-500.0,0.00027671,7]
[334450297,1723105850826,-500.0,0.00027671,7]
[334450298,1723105850835,-846.18,0.00027671,7]
[334450299,1723105850845,-500.0,0.00027671,7]
[334450300,1723105850854,-1054.91,0.00027671,7]
[334450301,1723105850865,-501.76602108,0.00027671,7]
[334450302,1723105850876,-500.0,0.00027671,7]
[334450303,1723105850892,-468.46555142,0.00027671,7]
[334450304,1723105850901,-500.0,0.00027671,7]
[334450305,1723105850911,-500.0,0.00027671,7]
[334450306,1723105850920,-500.0,0.00027671,7]
[334450307,1723105850929,-500.0,0.00027671,7]
[334450308,1723105850939,-501.31947171,0.00027671,7]
[334450309,1723105850950,-500.0,0.00027671,7]
[334450310,1723105850960,-500.0,0.00027671,7]
[334450311,1723105850970,-500.0,0.00027671,7]
[334450312,1723105850979,-829.61,0.00027671,7]
[334450313,1723105850989,-500.0,0.00027671,7]
[334450314,1723105850999,-770.74,0.00027671,7]
[334450315,1723105851009,-500.0,0.00027671,7]
[334450316,1723105851019,-500.0,0.00027671,7]
[334450317,1723105851029,-500.0,0.00027671,7]
[334450318,1723105851039,-423.51124401,0.00027671,7]
[334450319,1723105851049,-500.0,0.00027671,7]
[334450320,1723105851059,-500.0,0.00027671,7]
[334450321,1723105851070,-500.0,0.00027671,2]
[334450322,1723105851079,-500.0,0.00027671,7]
[334450323,1723105851089,-361.1656613,0.00027671,7]
[334450324,1723105851098,-230.72831795,0.00027671,7]
[334450325,1723105851453,-533.62513603,0.00016159,2]
[334450326,1723105851463,-150.01,0.00027396,2]
[334450327,1723105851473,-2605.92366681,0.00027396,2]
[334450328,1723105851484,-4724.12414925,0.00027397,7]
[334450329,1723105851495,-269.27168205,0.00027671,7]
[334450330,1723105851504,-500.0,0.00027671,7]
[334450331,1723105851513,-500.0,0.00027671,7]
[334450332,1723105851523,-303.31464586,0.00027671,7]
[334450333,1723105851534,-196.68535414,0.00027671,7]
[334450334,1723105851544,-500.0,0.00027671,7]
[334450335,1723105851554,-500.0,0.00027671,7]
[334450336,1723105851564,-500.0,0.00027671,7]
[334450337,1723105851573,-187.46156359,0.00027671,7]
[334450338,1723105851604,-7.08659536,0.00027671,7]
[334450339,1723105852060,-1184.01353538,0.00027387,3]
[334450343,1723105929224,163.7738709,0.00014247,2]
[334450344,1723105949831,269.80902419,0.00010997,2]
[334450345,1723106076083,684.78849183,0.00013329,2]
[334450354,1723106385820,2030.53917402,0.00013329,2]
[334450355,1723106391980,170.370135,0.00014247,2]
[334450359,1723106466855,154.69833824,0.00014247,2]
[334450360,1723106533198,155.30339518,9.999e-05,2]
[334450361,1723106580065,357.18103906,0.0001212,2]
[334450362,1723106581023,292.03756006,0.00014999,2]
[334450363,1723106624333,154.69833824,0.00014999,2]
[334450364,1723106715821,154.69833824,0.00014999,2]
[334450370,1723106793346,154.71377951,0.00014999,2]
[334450371,1723106846536,492.52191219,0.00015,2]
[334450372,1723106846569,161.570182,0.00014247,2]
[334450374,1723106885376,154.71377951,0.00014999,2]
[334450377,1723106967877,269.2404814,0.00014999,2]
[334450380,1723107010818,842.70514999,0.0001,2]
[334450425,1723107033132,-162.500002,0.00016486,2]
[334450426,1723107033142,-155.04626402,0.00017,2]
[334450427,1723107033153,-1546.9895623,0.00017245,2]
[334450428,1723107033163,-162.500002,0.00017345,2]
[334450429,1723107033172,-5189.2673806,0.00017389,2]
[334450431,1723107033198,-305.84891193,0.00017389,2]
[334450445,1723107039031,-173.44350557,0.00015952,2]
[334450446,1723107039041,-748.1411548,0.00016038,2]
[334450447,1723107039054,-36201.67590348,0.00016038,2]
[334450448,1723107039064,-834.23880041,0.00017389,2]
[334450449,1723107039074,-155.53616145,0.00017555,2]
[334450450,1723107039084,-155.21565003,0.0001784,2]
[334450451,1723107039093,-500.0,0.00017881,2]
[334450452,1723107039103,-500.0,0.00017881,2]
[334450453,1723107039114,-647.38935156,0.00017881,2]
[334450454,1723107039124,-6991.89309216,0.00017882,2]
[334450455,1723107039134,-186.38527297,0.0001818,2]
[334450456,1723107039144,-6249.1740888,0.00018302,2]
[334450457,1723107039156,-5238.95624179,0.00018302,2]
[334450458,1723107039165,-1785.06005895,0.00018316,2]
[334450459,1723107039175,-1648.73260493,0.00018316,2]
[334450460,1723107039186,-1611.38995866,0.00018316,2]
[334450461,1723107039196,-1763.75242219,0.00018356,2]
[334450462,1723107039208,-1163.02940656,0.00018557,2]
[334450463,1723107039218,-1091.50397563,0.00018557,2]
[334450464,1723107039229,-1109.04434069,0.00018629,2]
[334450465,1723107039241,-624.19479585,0.00018658,2]
[334450466,1723107039252,-845.87870421,0.00018667,2]
[334450467,1723107039262,-845.87870421,0.00018667,2]
[334450468,1723107039273,-154.71377951,0.00018679,2]
[334450469,1723107039283,-309.40893271,0.00018679,2]
[334450470,1723107039293,-269.73277317,0.00018679,2]
[334450471,1723107039304,-2090.46102232,0.00018686,2]
[334450472,1723107039314,-209.90726283,0.00018696,2]
[334450473,1723107039325,-246.10133494,0.00018696,2]
[334450474,1723107039339,-308.91402656,0.00018696,2]
[334450475,1723107039349,-188.63052762,0.00018696,2]
[334450476,1723107039359,-862.42234122,0.00018701,2]
[334450477,1723107039369,-209.18351946,0.00018701,2]
[334450478,1723107039379,-274.66750109,0.0001872,2]
[334450479,1723107039389,-250.0,0.00019041,2]
[334450480,1723107039399,-250.38146921,0.00019154,2]
[334450481,1723107039409,-2005.0,0.00019166,10]
[334450482,1723107039423,-167.009439,0.00019178,2]
[334450483,1723107039434,-34618.9842047,0.0001999,2]
[334450484,1723107039445,-1444.35779383,0.0002,2]
[334450485,1723107039456,-10490.66665029,0.0002,2]
[334450486,1723107039466,-156.65927702,0.0002,2]
[334450487,1723107039476,-404.71507901,0.0002,2]
[334450488,1723107039487,-472.12044886,0.0002028,2]
[334450489,1723107039497,-2090.4610223,0.00020836,2]
[334450490,1723107039506,-1546.98956225,0.00021546,2]
[334450491,1723107039515,-160.64700877,0.00022,2]
[334450492,1723107039525,-881.97401853,0.0002217,2]
[334450493,1723107039534,-2090.4610223,0.00022987,2]
[334450494,1723107039544,-78144.39149883,0.00023,2]
[334450495,1723107039554,-2090.4610223,0.00025137,2]
[334450496,1723107039564,-28677.04,0.00025787,3]
[334450497,1723107039573,-286.37174914,0.00025796,2]
[334450498,1723107039583,-500.0,0.00025796,2]
[334450499,1723107039593,-268.59653038,0.00025796,2]
[334450500,1723107039603,-500.0,0.00025796,2]
[334450501,1723107039613,-500.0,0.00025796,2]
[334450502,1723107039623,-500.0,0.00025796,2]
[334450503,1723107039632,-500.0,0.00025796,2]
[334450504,1723107039642,-500.0,0.00025796,2]
[334450505,1723107039652,-500.0,0.00025796,2]
[334450506,1723107039662,-500.0,0.00025796,2]
[334450507,1723107039672,-286.28254616,0.00025796,2]
[334450508,1723107039681,-500.0,0.00025796,2]
[334450509,1723107039691,-34412.45,0.00025797,3]
[334450510,1723107039701,-41294.94,0.00025807,3]
[334450511,1723107039711,-25714.08242752,0.00025817,3]
[334450526,1723107041033,-300.1212845,0.00018679,2]
[334450527,1723107041044,-734.42757248,0.00025817,3]
[334450528,1723107041056,-1546.98956225,0.00025847,2]
[334450529,1723107041066,-200.0,0.00026027,2]
[334450530,1723107041076,-2605.08504403,0.000269,2]
[334450531,1723107041085,-64786.95362416,0.00027,10]
[334450535,1723107043711,-4273.57667893,0.00018346,2]
[334450595,1723107359923,162.069588,0.00014247,2]
[334450596,1723107435129,745.64786578,0.00014247,2]
[334450598,1723107444863,3601.91477368,0.00014247,2]
[334450600,1723107446126,1167.94419204,0.00014247,2]
[334450608,1723107826167,159.40286,0.00014247,2]
[334450665,1723108231892,-300.1212845,0.00016159,2]
[334450667,1723108231903,-155.02918317,0.00016347,2]
[334450669,1723108231913,-133.40453233,0.00018346,2]
[334450740,1723108238249,-779.50217517,0.00018346,2]
[334450741,1723108238260,-414.64740725,0.00019155,2]
[334450742,1723108238270,-1610.4258546,0.00019167,2]
[334450743,1723108238280,-2783.4248212,0.00019177,2]
[334450744,1723108238290,-5238.95624179,0.00019256,2]
[334450745,1723108238300,-155.10431992,0.00019256,2]
[334450746,1723108238309,-336.05027019,0.00019256,2]
[334450747,1723108238319,-154.87477324,0.00019256,2]
[334450748,1723108238329,-159.96841318,0.00019477,2]
[334450749,1723108238339,-844.18319551,0.00019477,2]
[334450750,1723108238349,-403.3502506,0.00019477,2]
[334450751,1723108238358,-155.93009705,0.00019547,2]
[334450752,1723108238372,-472.12044886,0.00019999,2]
[334450753,1723108238382,-515.14154961,0.00021599,2]
[334450754,1723108238391,-250.0,0.00023036,2]
[334450755,1723108238401,-604.5072139,0.00023144,2]
[334450756,1723108238411,-162.47169,0.00023609,2]
[334450757,1723108238421,-153.0,0.00025641,2]
[334450758,1723108238431,-153.0,0.0002589,2]
[334450759,1723108238440,-1000.0,0.00026,26]
[334450760,1723108238450,-200.0,0.00026027,2]
[334450761,1723108238460,-1412.0,0.00026411,2]
[334450762,1723108238470,-153.0,0.00026849,2]
[334450763,1723108238480,-153.0,0.00026849,2]
[334450764,1723108238489,-151.0,0.0002687,2]
[334450765,1723108238499,-897.62520902,0.00026899,2]
[334450766,1723108238508,-897.62520901,0.00026971,2]
[334450767,1723108238518,-183.04326128,0.00026979,2]
[334450768,1723108238528,-12559.72,0.0002698,3]
[334450769,1723108238538,-21926.65,0.0002698,3]
[334450770,1723108238547,-14124.63846335,0.0002698,3]
[334450771,1723108238559,-4147.57153665,0.0002698,3]
[334450772,1723108238568,-107508.307134,0.0002699,3]
[334450773,1723108238577,-500.0,0.00026999,2]
[334450774,1723108238587,-242.52843414,0.00026999,2]
[334450775,1723108238597,-200.4602244,0.00026999,2]
[334450776,1723108238607,-500.0,0.00026999,2]
[334450777,1723108238619,-500.0,0.00026999,2]
[334450778,1723108238817,-460.15618582,0.00026999,2]
[334450779,1723108238827,-500.0,0.00026999,2]
[334450780,1723108238836,-500.0,0.00026999,2]
[334450781,1723108238846,-500.0,0.00026999,2]
[334450782,1723108238855,-500.0,0.00026999,2]
[334450783,1723108238865,-19317.13157845,0.00027,11]
[334450784,1723108238875,-242585.6666351,0.00027,10]
[334450794,1723108241852,-2874.50015851,0.00019167,2]
[334450796,1723108241862,-167.009439,0.00025582,2]
[334450797,1723108241872,-15226.84,0.0002698,3]
[334450798,1723108241882,-14205.9718522,0.00027,10]
[334450799,1723108241891,-37699.25563771,0.00027,2]
[334450800,1723108241903,-658.70671914,0.00027,2]
[334450801,1723108241954,-71452.74905273,0.00027,2]
[334450802,1723108241964,-1626.61800287,0.00027,2]
[334450803,1723108241973,-1000.0,0.00027,27]
[334450804,1723108241983,-305.0,0.00027,2]
[334450805,1723108241992,-150.112233,0.00027,6]
[334450806,1723108242001,-516.42638736,0.00027,2]
[334450807,1723108242011,-897.62520901,0.00027043,2]
[334450808,1723108242020,-897.62520901,0.00027115,2]
[334450809,1723108242029,-897.62520901,0.00027187,2]
[334450810,1723108242038,-150.112233,0.000272,10]
[334450811,1723108242047,-35836.1023781,0.00027276,3]
[334450812,1723108242057,-35836.1023781,0.00027277,3]
[334450813,1723108242066,-86760.82125186,0.00027286,11]
[334450814,1723108242075,-23559.67590476,0.00027286,3]
[334450849,1723108243196,-4086.19387943,0.00027286,3]
[334450850,1723108243255,-36541.83424913,0.00027286,3]
[334450858,1723108310930,174.247318,0.00014247,2]
[334450913,1723109296681,163.198913,0.00014247,2]
[334450917,1723109366167,-241.51148239,0.00015712,2]
[334450989,1723109438512,-1383.1311371,0.0001571,2]
[334450990,1723109438522,-2858.51438682,0.0001571,2]
[334450991,1723109438532,-1610.90790663,0.00015746,2]
[334450992,1723109438542,-198.84375251,0.00015751,2]
[334450993,1723109438551,-9110.76868748,0.00015954,2]
[334450994,1723109438562,-1794.84907646,0.00016095,2]
[334450995,1723109438572,-492.52191219,0.00016159,2]
[334450996,1723109438582,-181.387159,0.00016278,2]
[334450997,1723109438592,-154.79103211,0.00016309,2]
[334450998,1723109438602,-181.387159,0.00016323,2]
[334450999,1723109438612,-181.387159,0.00016368,2]
[334451000,1723109438622,-181.387159,0.00016412,2]
[334451001,1723109438631,-181.387159,0.00016457,2]
[334451002,1723109438641,-181.387159,0.00016502,2]
[334451003,1723109438651,-181.387159,0.00016546,2]
[334451004,1723109438660,-181.387159,0.00016591,2]
[334451005,1723109438670,-181.387159,0.00016636,2]
[334451006,1723109438679,-181.387159,0.0001668,2]
[334451007,1723109438689,-181.387159,0.00016725,2]
[334451008,1723109438698,-181.387159,0.0001677,2]
[334451009,1723109438707,-181.387159,0.00016814,2]
[334451010,1723109438721,-181.387159,0.00016859,2]
[334451011,1723109438730,-181.387159,0.00016904,2]
[334451012,1723109438740,-181.387159,0.00016948,2]
[334451013,1723109438749,-181.387159,0.00016993,2]
[334451014,1723109438759,-181.387159,0.00017038,2]
[334451015,1723109438768,-181.387159,0.00017082,2]
[334451016,1723109438778,-181.387159,0.00017127,2]
[334451017,1723109438787,-472.12044886,0.00018825,2]
[334451019,1723109438797,-500.0,0.00018863,2]
[334451021,1723109438806,-500.0,0.00018863,2]
[334451023,1723109438818,-200.48393973,0.00018863,2]
[334451024,1723109438828,-500.0,0.00018863,2]
[334451025,1723109438838,-500.0,0.00018863,2]
[334451026,1723109438847,-171.63815478,0.00018863,2]
[334451027,1723109438856,-352.65665323,0.00018863,2]
[334451028,1723109438866,-500.0,0.00018863,2]
[334451029,1723109438875,-207.7516841,0.00018863,2]
[334451030,1723109438884,-500.0,0.00018863,2]
[334451031,1723109438894,-500.0,0.00018863,2]
[334451032,1723109438903,-500.0,0.00018863,2]
[334451034,1723109438913,-500.0,0.00018863,2]
[334451036,1723109438923,-500.0,0.00018863,2]
[334451038,1723109438932,-500.0,0.00018863,2]
[334451040,1723109438941,-500.0,0.00018863,2]
[334451042,1723109438951,-500.0,0.00018863,2]
[334451044,1723109438960,-500.0,0.00018863,2]
[334451046,1723109438973,-343.16245401,0.00018863,2]
[334451048,1723109438982,-22987.8017386,0.00018864,2]
[334451049,1723109438991,-7004.89864765,0.00018999,2]
[334451050,1723109439001,-7231.33841838,0.00019045,2]
[334451051,1723109439010,-186.27396976,0.000191,2]
[334451052,1723109439019,-20762.30804091,0.00019101,2]
[334451053,1723109439029,-9646.87700977,0.00019139,2]
[334451054,1723109439038,-808.72297002,0.00019147,2]
[334451055,1723109439050,-354.30643654,0.00019147,2]
[334451056,1723109439060,-277.22173043,0.00019153,2]
[334451057,1723109439069,-5238.95624179,0.00019154,2]
[334451058,1723109439079,-2139.49023769,0.00019167,2]
[334451059,1723109439092,-3088.06064461,0.00019167,2]
[334451060,1723109439101,-2058.30872197,0.00019167,2]
[334451061,1723109439111,-1763.75242219,0.00019177,2]
[334451062,1723109439120,-2162.90546762,0.00019177,2]
[334451063,1723109439131,-32777.9169846,0.00019246,2]
[334451064,1723109439140,-1109.04434069,0.00019256,2]
[334451065,1723109439149,-168.029685,0.00019286,2]
[334451066,1723109439159,-5638.1539593,0.00019351,2]
[334451067,1723109439170,-320.19249005,0.00019451,2]
[334451068,1723109439180,-249.2121176,0.00019477,2]
[334451069,1723109439190,-356.70794981,0.00019477,2]
[334451070,1723109439202,-1020.02822822,0.00019547,2]
[334451071,1723109439213,-727.33991579,0.00019999,2]
[334451072,1723109439225,-12900.0,0.0002,2]
[334451073,1723109439234,-156.37509576,0.0002,2]
[334451074,1723109439243,-1624.34989447,0.0002,2]
[334451075,1723109439253,-350.99427229,0.0002,2]
[334451076,1723109439263,-1443.89362386,0.0002,2]
[334451077,1723109439273,-294.13159854,0.0002,2]
[334451078,1723109439282,-200.8095055,0.00021502,2]
[334451079,1723109439292,-268.76012105,0.00021502,2]
[334451080,1723109439303,-500.0,0.00021502,2]
[334451081,1723109439315,-392.45679725,0.00021502,2]
[334451082,1723109439325,-500.0,0.00021502,2]
[334451083,1723109439335,-500.0,0.00021502,2]
[334451084,1723109439344,-500.0,0.00021502,2]
[334451085,1723109439354,-500.0,0.00021502,2]
[334451086,1723109439363,-500.0,0.00021502,2]
[334451087,1723109439373,-500.0,0.00021502,2]
[334451088,1723109439383,-450.0,0.00021502,2]
[334451089,1723109439393,-32777.9169846,0.00021503,3]
[334451090,1723109439403,-5638.15395926,0.00021513,2]
[334451091,1723109439414,-154.71377951,0.00021906,2]
[334451092,1723109439423,-5638.15395926,0.00023676,2]
[334451093,1723109439434,-5638.15395926,0.00025838,2]
[334451094,1723109439444,-200.0,0.00026027,2]
[334451095,1723109439454,-163.198913,0.00026521,2]
[334451096,1723109439467,-240.9462531,0.00026849,2]
[334451097,1723109439477,-288.3473829,0.00026849,2]
[334451098,1723109439487,-153.0,0.00026849,2]
[334451099,1723109439497,-307.6091374,0.00026849,2]
[334451100,1723109439507,-276.9320131,0.00026849,2]
[334451101,1723109439517,-294.4971025,0.00026849,2]
[334451102,1723109439526,-207.1717265,0.00026849,2]
[334451103,1723109439536,-153.0,0.00026849,2]
[334451104,1723109439546,-153.0,0.00026849,2]
[334451105,1723109439556,-153.0,0.00026849,2]
[334451106,1723109439565,-271.5025496,0.00026849,2]
[334451107,1723109439575,-153.0,0.00026849,2]
[334451108,1723109439584,-271.5025496,0.00026849,2]
[334451109,1723109439594,-153.0,0.00026849,2]
[334451110,1723109439604,-153.0,0.00026849,2]
[334451111,1723109439613,-502.2840962,0.00026849,2]
[334451112,1723109439622,-271.5025496,0.00026849,2]
[334451113,1723109439631,-294.4971025,0.00026849,2]
[334451114,1723109439641,-271.5025496,0.00026849,2]
[334451115,1723109439650,-172.1498653,0.00026849,2]
[334451116,1723109439659,-271.5025496,0.00026849,2]
[334451117,1723109439669,-294.4971025,0.00026849,2]
[334451118,1723109439678,-207.1717265,0.00026849,2]
[334451119,1723109439687,-294.4971025,0.00026849,2]
[334451120,1723109439697,-271.5025496,0.00026849,2]
[334451121,1723109439706,-294.4971025,0.00026849,2]
[334451122,1723109439717,-271.5025496,0.00026849,2]
[334451123,1723109439726,-4778.11378756,0.00026875,2]
[334451124,1723109439735,-206.8207211,0.00026959,2]
[334451125,1723109439744,-267.0,0.00027,2]
[334451126,1723109439754,-311.02913928,0.00027286,2]
[334451127,1723109439763,-4183.4711297,0.00027286,2]
[334451128,1723109439772,-912.9067075,0.00027286,2]
[334451129,1723109439782,-150.0,0.000273,2]
[334451130,1723109439791,-200.0,0.00027373,2]
[334451131,1723109439800,-200.0,0.00027373,2]
[334451132,1723109439809,-200.0,0.00027373,2]
[334451133,1723109439822,-200.0,0.00027373,2]
[334451134,1723109439831,-151.0,0.00027376,7]
[334451135,1723109439841,-32777.9169846,0.00027386,3]
[334451136,1723109439850,-78084.23058255,0.00027394,2]
[334451137,1723109439860,-305.65463372,0.00027396,2]
[334451138,1723109439870,-2605.08504403,0.00027396,2]
[334451139,1723109439880,-153.67541,0.00027397,7]
[334451141,1723109439889,-150.0,0.00027428,2]
[334451143,1723109439899,-200.0,0.00027473,5]
[334451145,1723109439908,-26680.17849741,0.000275,2]
[334451146,1723109439919,-150.112233,0.000275,7]
[334451147,1723109439928,-22269.57030175,0.000275,2]
[334451148,1723109439938,-24700.29596668,0.00027561,3]
[334451149,1723109439948,-159.0,0.0002757,18]
[334451150,1723109439957,-1005.013645,0.000276,2]
[334451151,1723109439971,-150.01,0.0002767,2]
[334451152,1723109439987,-2610.64454302,0.0002767,2]
[334451153,1723109439996,-267.0,0.00027671,2]
[334451154,1723109440005,-271.5025496,0.00027671,2]
[334451155,1723109440015,-275.7117364,0.00027671,2]
[334451156,1723109440024,-151.0,0.00027676,4]
[334451157,1723109440034,-151.0,0.00027676,4]
[334451158,1723109440045,-150.112233,0.000277,10]
[334451159,1723109440056,-278.766,0.00027705,2]
[334451160,1723109440066,-645.62,0.00027705,2]
[334451161,1723109440076,-1412.0,0.00027705,2]
[334451162,1723109440088,-253.178,0.00027726,2]
[334451163,1723109440100,-213.771,0.00027726,2]
[334451164,1723109440112,-150.0,0.00027726,2]
[334451165,1723109440124,-289.8209542,0.00027781,2]
[334451166,1723109440136,-207.0151569,0.00027781,2]
[334451167,1723109440146,-468.83987405,0.00027945,14]
[334451168,1723109440157,-32777.9169846,0.0002799,3]
[334451169,1723109440169,-2000.0,0.0002799,2]
[334451170,1723109440178,-150.112233,0.00028,5]
[334451171,1723109440188,-5638.15395926,0.00028,2]
[334451172,1723109440197,-1000.0,0.00028,28]
[334451173,1723109440207,-65555.8339693,0.0002809,3]
[334451174,1723109440218,-133053.5786796,0.000281,2]
[334451175,1723109440228,-151.0,0.00028154,4]
[334451176,1723109440237,-151.0,0.00028154,4]
[334451177,1723109440247,-32777.9169846,0.00028385,3]
[334451178,1723109440256,-151.0,0.00028385,7]
[334451179,1723109440266,-205.240839,0.00028385,7]
[334451180,1723109440276,-205.240839,0.00028385,7]
[334451181,1723109440287,-635.341889,0.00028385,7]
[334451182,1723109440297,-635.341889,0.00028385,7]
[334451183,1723109440307,-205.0,0.00028395,2]
[334451184,1723109440317,-205.0,0.00028395,2]
[334451185,1723109440327,-205.0,0.00028395,2]
[334451186,1723109440336,-205.0,0.00028395,2]
[334451187,1723109440346,-205.0,0.00028395,2]
[334451188,1723109440356,-205.0,0.00028395,2]
[334451189,1723109440368,-205.0,0.00028395,2]
[334451190,1723109440378,-205.0,0.00028395,2]
[334451191,1723109440389,-205.0,0.00028395,2]
[334451192,1723109440399,-205.0,0.00028395,2]
[334451193,1723109440410,-205.0,0.00028395,2]
[334451194,1723109440420,-205.0,0.00028395,2]
[334451195,1723109440430,-205.0,0.00028395,2]
[334451197,1723109440440,-205.0,0.00028395,2]
[334451199,1723109440449,-348.0,0.00028395,2]
[334451201,1723109440460,-348.0,0.00028395,2]
[334451203,1723109440470,-348.0,0.00028395,2]
[334451205,1723109440479,-348.0,0.00028395,2]
[334451207,1723109440488,-348.0,0.00028395,2]
[334451209,1723109440497,-348.0,0.00028395,2]
[334451211,1723109440506,-348.0,0.00028395,2]
[334451213,1723109440515,-348.0,0.00028395,2]
[334451215,1723109440525,-348.0,0.00028395,2]
[334451217,1723109440535,-348.0,0.00028395,2]
[334451218,1723109440544,-348.0,0.00028395,2]
[334451219,1723109440555,-348.0,0.00028395,2]
[334451220,1723109440564,-348.0,0.00028395,2]
[334451221,1723109440574,-348.0,0.00028395,2]
[334451222,1723109440583,-205.0,0.00028395,2]
[334451223,1723109440593,-205.0,0.00028395,2]
[334451224,1723109440603,-205.0,0.00028395,2]